Cogmind - Beta 13 @@@ ROGUE MODE // 2024.04.27 @ 22:36:47 Player: DreamweaverKara Result: Self-destructed Performance ------------- Evolutions (2) 1000 Regions Visited (3) 600 Robots Destroyed (28) 140 Value Destroyed (690) 690 Prototype IDs (4) 80 Alien Tech Used (0) 0 Bonus (0) 0 TOTAL SCORE: 2510 Bonus ------- None Cogmind --------- Core Integrity 229/550 Matter 92/300 Energy 100/100 System Corruption 0% Temperature Cool (0) Movement Core (350) Ox6 Location -8/Materials Parts ------- > --- POWER (2) -------- (None) > --- PROPULSION (2) --- (None) > --- UTILITY (5) ------ Large Storage Unit > --- WEAPON (2) ------- (None) > --- INVENTORY (15) --- Aluminum Leg VTOL Module Particle Gun Datajack Datajack Mining Laser Peak State ------------ > --- POWER ------------ Ion Engine Improved Ion Engine > --- PROPULSION ------- Aluminum Leg Aluminum Leg > --- UTILITY ---------- Large Storage Unit Improved Terrain Scanner Core Shielding Tractor Beam > --- WEAPON ----------- Light Assault Rifle Mini Grenade Launcher > --- INVENTORY -------- Aluminum Leg Aluminum Leg VTOL Module Datajack Datajack Mining Laser [Rating: 14] Favorites ----------- Power Ion Engine Engine Ion Engine Propulsion Light Treads Treads Light Treads Leg Aluminum Leg Utility Improved Terrain Scanner Device Improved Terrain Scanner Storage Large Storage Unit Protection Core Shielding Weapon Assault Rifle Ballistic Gun Assault Rifle Launcher Mini Grenade Launcher Build | -11 -10 -9 -8 ------- Run | Yrd Mat Mat Mat Slots Evolved 4 | . . 2 2 Power 1 | . . . 1 Propulsion . | . . . . Utility 3 | . . 2 1 Weapon . | . . . . Parts Attached 24 | 7 1 12 4 Power 3 | 1 . 1 1 Engine 3 | 1 . 1 1 Core . | . . . . Reactor . | . . . . Propulsion 10 | 2 . 6 2 Treads 4 | 2 . 2 . Leg 6 | . . 4 2 Wheel . | . . . . Hover . | . . . . Flight . | . . . . Utility 7 | 2 1 3 1 Device 4 | 1 . 2 1 Storage 2 | 1 1 . . Processor . | . . . . Hackware . | . . . . Protection 1 | . . 1 . Artifact . | . . . . Weapon 4 | 2 . 2 . Energy Gun . | . . . . Energy Cannon . | . . . . Ballistic Gun 3 | 2 . 1 . Ballistic Cannon . | . . . . Launcher 1 | . . 1 . Special Weapon . | . . . . Impact Weapon . | . . . . Slashing Weapon . | . . . . Piercing Weapon . | . . . . Special Melee Weapon . | . . . . Unidentified Prototypes . | . . . . Parts Lost 15 | . . 5 10 Power 3 | . . 1 2 Propulsion 5 | . . 2 3 Utility 4 | . . 1 3 Weapon 3 | . . 1 2 Highest Loss Streak 10 | . . 4 10 To Critical Strikes . | . . . . Average Slot Usage (%) 96 | . 100 96 69 Engine 12 | . 14 10 13 Treads 21 | . 28 16 . Leg 3 | . . 5 15 Device 16 | . 14 20 14 Storage 12 | . 14 11 9 Protection 3 | . . 10 5 Ballistic Gun 22 | . 28 17 3 Launcher 2 | . . 4 7 Naked Turns . | . . . . Heaviest Build 37 | 15 30 32 37 Greatest Support 40 | 40 40 40 20 Greatest Overweight (x) 3 | 1 . 1 3 Average Overweight (x) . | . . . 1 Largest Inventory Capacity 15 | 8 15 15 15 Average Capacity 12 | 6 11 15 15 Most Carried 15 | 4 15 15 8 Average Carried 8 | 2 7 12 6 Final Capacity 15 | 8 15 15 15 Final Carried 15 | 3 15 9 6 Class Distribution -------------------- 96% | Mutant 3% | Scavenger-Mutant Dominant Class ---------------- Mutant | -10/Materials Mutant | -9/Materials Mutant | -8/Materials Resources | -11 -10 -9 -8 ----------- Run | Yrd Mat Mat Mat Matter Collected 475 | 170 279 26 . Remotely . | . . . . Salvage Created 632 | 11 289 322 10 Parts 64 | 3 23 35 3 Haulers Intercepted . | . . . . Recyclers Shooed 1 | . 1 . . Parts Field Recycled . | . . . . Retrieved Matter . | . . . . Parts Self-Destructed . | . . . . Prevented . | . . . . Kills | -11 -10 -9 -8 ------- Run | Yrd Mat Mat Mat Combat Hostiles Destroyed 23 | . 9 11 3 Guns 9 | . 9 . . AOE 14 | . . 11 3 Classes Destroyed 8 | 1 2 5 . Worker 1 | . . 1 . Builder 1 | . . 1 . Tunneler 1 | 1 . . . Recycler 1 | . . 1 . Operator 1 | . . 1 . Swarmer 9 | . 3 3 3 Grunt 11 | . 6 5 . Sentry 3 | . . 3 . Best Kill Streak 11 | 1 3 11 2 Combat Bots Only 8 | . 3 8 2 Max Kills in Single Turn 4 | 1 1 4 1 Gunslinging . | . . . . Exploded 3 | . . 3 1 Melee . | . . . . Uniques/NPCs Destroyed . | . . . . Combat | -11 -10 -9 -8 -------- Run | Yrd Mat Mat Mat Hostile Shots Fired 197 | . 38 68 91 Missed 68 | . 9 29 30 Damage Taken 1831 | . 330 725 776 Core 491 | . 22 148 321 Absorbed by Shields . | . . . . Redirected to Shielding 52 | . . 33 19 Core Remaining (%) 84 | 100 91 63 . Volleys Fired 46 | 3 24 16 3 Largest 2 | 2 2 2 2 Hottest 50 | 40 40 50 50 Shots Fired 87 | 6 48 28 5 Gun 70 | 6 48 14 2 Cannon . | . . . . Launcher 17 | . . 14 3 Special . | . . . . Kinetic 70 | 6 48 14 2 Thermal . | . . . . Explosive 17 | . . 14 3 Electromagnetic . | . . . . Robot Hit Streak 10 | 1 9 10 1 Robot Miss Streak 3 | 2 3 2 3 Penetration Max . | . . . . Secondary Targets . | . . . . Shots Hit Robots 50 | 2 32 14 2 Core Hits 49 | 1 15 27 6 Critical Kills . | . . . . Critical Parts Destroyed . | . . . . Critical Strikes . | . . . . Melee Attacks . | . . . . Impact . | . . . . Slashing . | . . . . Piercing . | . . . . Sneak Attacks . | . . . . Combat Hostiles . | . . . . Follow-up Attacks . | . . . . Damage Inflicted 1656 | 34 401 815 406 Guns 511 | 34 398 79 . Cannons . | . . . . Explosions 1100 | . . 736 364 Melee . | . . . . Ramming 45 | . 3 . 42 Kinetic 511 | 34 398 79 . Thermal . | . . . . Explosive 1100 | . . 736 364 Electromagnetic . | . . . . Impact . | . . . . Slashing . | . . . . Piercing . | . . . . Highest Corruption 2 | . 2 . . Average Corruption 2 | . 2 . . Corruption Purged . | . . . . Corruption Blocked . | . . . . Effects 10 | . 10 . . Message Errors 2 | . 2 . . Matter Fused 2 | . 2 . . Heat Flow Errors 3 | . 3 . . Data Loss (minor) 1 | . 1 . . Alerts 2 | . 2 . . Overload Shots . | . . . . Overflow Damage 117 | . . 82 35 Projectiles . | . . . . Explosions 117 | . . 82 35 Melee . | . . . . Knockbacks . | . . . . Impact . | . . . . Kinetic . | . . . . Secondary . | . . . . Self-Inflicted Damage 285 | . . 276 9 Shots 11 | . . 10 1 Rammed 3 | . 2 . 1 Targets Rammed 19 | . 2 . 17 Kicked 16 | . . . 16 Crushed . | . . . . Highest Temperature 161 | . 161 13 10 Average Temperature 45 | . 66 3 6 Received Heat Transfer 651 | . 159 123 369 Siege Activations . | . . . . Robots Corrupted . | . . . . Combat Hostiles . | . . . . Parts Fried . | . . . . Impact Corruptions . | . . . . Robots Melted . | . . . . Combat Hostiles . | . . . . Parts Melted . | . . . . Heat Transferred . | . . . . Parts Sabotaged . | . . . . Parts Stolen . | . . . . Parts Stripped . | . . . . Power Chain Reactions . | . . . . Alert | -11 -10 -9 -8 ------- Run | Yrd Mat Mat Mat Peak Influence 328 | 5 135 328 192 Initial 104 | . 3 5 104 Average 62 | 1 54 65 153 Maximum Alert Level 1 | . . 1 . Low Security (%) 94 | 100 100 82 100 Level 1 5 | . . 17 . Level 2 . | . . . . Level 3 . | . . . . Level 4 . | . . . . Level 5 . | . . . . High Security . | . . . . Max Security . | . . . . Squads Dispatched 5 | . 2 2 1 Investigation 1 | . 1 . . Extermination . | . . . . Reinforcement 4 | . 1 2 1 Assault . | . . . . Garrison . | . . . . Intercept . | . . . . Searches Triggered . | . . . . Construction Impeded 1 | . . . 1 Haulers Reinforced . | . . . . Active Scanning Responses . | . . . . Cargo Convoy Interrupts . | . . . . Stealth | -11 -10 -9 -8 --------- Run | Yrd Mat Mat Mat Distress Signals . | . . . . Communications Jammed . | . . . . Distress Signals . | . . . . Times Spotted 35 | . 12 17 6 Peak Tracking Total 8 | . 4 8 4 Tactical Retreats 2 | . . 1 1 Traps | -11 -10 -9 -8 ------- Run | Yrd Mat Mat Mat Traps Triggered 2 | . 2 . . Indirectly . | . . . . Trap Hack Attempts . | . . . . Triggered . | . . . . Disarmed . | . . . . Reprogrammed . | . . . . Reused . | . . . . Traps Extracted . | . . . . Installed . | . . . . Triggered . | . . . . Machines | -11 -10 -9 -8 ---------- Run | Yrd Mat Mat Mat Machines Disabled 3 | . 1 2 . Max in Single Turn 1 | . 1 1 . Machines Repaired . | . . . . Machines Dismantled . | . . . . Machines Sabotaged . | . . . . Overloaded Fab Kills . | . . . . Hacking | -11 -10 -9 -8 --------- Run | Yrd Mat Mat Mat Machines Accessed 5 | . 3 1 1 Terminals 4 | . 2 1 1 Fabricators . | . . . . Repair Stations . | . . . . Recycling Units 1 | . 1 . . Scanalyzers . | . . . . Garrison Access . | . . . . Total Hacks 13 | . 7 3 3 Successful 6 | . 3 1 2 Failed 7 | . 4 2 1 Catastrophic 1 | . 1 . . Database Lockouts . | . . . . Manual 1 | . 1 . . Terminals 11 | . 5 3 3 Fabricators . | . . . . Repair Stations . | . . . . Recycling Units 2 | . 2 . . Scanalyzers . | . . . . Garrison Access . | . . . . Terminal Hacks 5 | . 2 1 2 Record 1 | . . 1 . Prototype ID Bank 2 | . 1 . 1 Zone Layout 2 | . 1 . 1 Fabricator Hacks . | . . . . Repair Station Hacks . | . . . . Recycling Unit Hacks 1 | . 1 . . Retrieve Matter 1 | . 1 . . Scanalyzer . | . . . . Garrison Access Hacks . | . . . . Unauthorized Hacks . | . . . . Terminals . | . . . . Fabricators . | . . . . Repair Stations . | . . . . Recycling Units . | . . . . Scanalyzers . | . . . . Garrison Access . | . . . . Data Cores Recovered . | . . . . Used . | . . . . Hacking Detections 4 | . 3 1 . Full Trace Events 1 | . 1 . . Feedback Events . | . . . . Feedback Blocked . | . . . . Robot Schematics Acquired . | . . . . Robots Built . | . . . . Authchips . | . . . . Time . | . . . . Total Robot Build Rating . | . . . . Part Schematics Acquired . | . . . . Parts Built . | . . . . Authchips . | . . . . Time . | . . . . Total Part Build Rating . | . . . . Parts Repaired . | . . . . Time . | . . . . Parts Recycled . | . . . . Recycled Matter . | . . . . Retrieved Matter . | . . . . Retrieved Components . | . . . . Parts Scanalyzed . | . . . . Part Schematics Acquired . | . . . . Parts Damaged . | . . . . Bothacking | -11 -10 -9 -8 ------------ Run | Yrd Mat Mat Mat Used RIF Installer . | . . . . Robots Hacked . | . . . . Non-combat . | . . . . Combat . | . . . . Robot Hacks Applied . | . . . . Relay Couplers Released . | . . . . Fabnet Peak Effective % . | . . . . Robots Rewired . | . . . . Allies Hacked . | . . . . Hacks Repelled . | . . . . Allies | -11 -10 -9 -8 -------- Run | Yrd Mat Mat Mat Total Allies . | . . . . Largest Group . | . . . . Highest-Rated Group . | . . . . Highest-Rated Ally . | . . . . Total Orders . | . . . . Ally Attacks . | . . . . Total Damage . | . . . . Kills . | . . . . Allies Corrupted . | . . . . Allies Melted . | . . . . Intel | -11 -10 -9 -8 ------- Run | Yrd Mat Mat Mat Robot Analysis Total . | . . . . Derelict Logs Recovered . | . . . . Drone Launches . | . . . . Drone Recoveries . | . . . . Exploration | -11 -10 -9 -8 ------------- Run | Yrd Mat Mat Mat Turns Passed 1564 | 102 835 505 122 Spaces Moved 598 | 56 345 158 39 Core 14 | 14 . . . Treads 491 | 42 345 104 . Legs 93 | . . 54 39 Wheels . | . . . . Hover . | . . . . Flight . | . . . . Fastest Speed 50 | 50 160 160 190 Average Speed 163 | 137 160 170 197 Slowest Speed 330 | 160 160 240 330 Overloaded Moves . | . . . . Propulsion Burnouts . | . . . . Robots Hopped . | . . . . Cave-ins Triggered . | . . . . Exploration Rate (%) 19 | 4 39 27 6 Regions Visited 3 Branch Regions . Pre-discovered Areas . | . . . . Known Exits Taken . | . . . . Unknown Exits Taken 3 | 1 1 1 . Scrap Searched . | . . . . Spaces Dug . | . . . . Terrain Destroyed 114 | . . 86 28 Melee . | . . . . Projectile . | . . . . AOE 114 | . . 86 28 Terrain Rammed . | . . . . Walls Destroyed . | . . . . Machines Disabled . | . . . . Actions | -11 -10 -9 -8 --------- Run | Yrd Mat Mat Mat Total 1087 | 75 581 366 65 Wait 365 | . 191 174 . Move 595 | 55 344 157 39 Hop . | . . . . Pick Up 29 | 10 15 3 1 Fast Attach 1 | . . 1 . Attach 17 | 7 . 6 4 Detach . | . . . . Swap 6 | . 1 5 . Drop 9 | . 4 4 1 Fire 46 | 3 24 16 3 Melee . | . . . . Ram 1 | . . . 1 Kick 16 | . . . 16 Crush 2 | . 2 . . Escape Stasis . | . . . . Rewire . | . . . . Trap . | . . . . Miscellaneous . | . . . . Route ------- -11/Scrapyard -10/Materials -9/Materials -8/Materials History --------- Turn | Location | Event 22 | -11/Scrapyard | Discovered new exit (range 14) 103 | -11/Scrapyard | Entered Materials 300 | -10/Materials | Build established: Mutant 860 | -10/Materials | Discovered new exit (range 16) 938 | -10/Materials | Entered another Materials area 938 | -9/Materials | Evolved 2 slots: Utility x2 1360 | -9/Materials | Destroyed 8 combat bots 1381 | -9/Materials | Lost 4 parts (2n1u1w) 1434 | -9/Materials | Discovered new exit (range 6) 1443 | -9/Materials | Entered another Materials area 1443 | -8/Materials | Evolved 2 slots: Power x1, Utility x1 1557 | -8/Materials | Core integrity fell below 50% 1565 | -8/Materials | Self-destructed Last Messages --------------- 01550_ U-05 Engineer builds a Wall. 01550_ U-05 Engineer lays Concrete. 01550_ Kicked G-47 Trooper. 01550_ U-05 Engineer lays Concrete. 01552_ Kicked G-47 Trooper. 01553_ U-05 Engineer builds a Wall. 01553_ U-05 Engineer lays Concrete. 01554_ Kicked G-47 Trooper. 01554_ U-05 Engineer lays Concrete. 01556_ Critical hit (Burn: +37). 01556_ Kicked G-47 Trooper. 01556_ U-05 Engineer lays Concrete. 01557_ U-05 Engineer builds a Wall. 01558_ Critical hit (Burn: +37). 01558_ Kicked G-47 Trooper. 01558_ U-05 Engineer lays Concrete. 01560_ G-47 Trooper suffers critical hit (Burn). 01560_ Kicked G-47 Trooper out of the way. 01560_ Aluminum Leg destroyed. 01562_ Slammed into G-47 Trooper. Map ----- +----------------------------------------------------+ | ?????????????????????????????????????????????????? | | ?????????????????????????????????????????????????? | | ?????????????????????????????????????????????????? | | ?????????????????????????????????????????????????? | | ?????????????????????????????????????????????????? | | ?????????????????????????????????????????????????? | | ???????????????????????#?????????????????????????? | | ?????????????????????????????????????????????????? | | ???? ??????????????????????????#????????????????? | | ! # # #????#????????????????????????????? | | # ##########?????????????????????????????????? | | "" # #??##########???#??????????????????????????? | | "" #" #??# ##?????????????????????????????? | | "" #% ##?# """ #????????#?????????????????????? | | # #?# """ ##?????????????????????????????? | | #?# """ #???########??? ???????????????? | | ## [ #?# ###?# #???????????????????? | | *% ### """ #???# #???????????????????? | | "" ## """ #???# """##??????????????????? | | "" ## """ #???# """ #??????????????????? | | "" ?# #?#?# """##??????????????????? | | #?####+#####???# ##??????????????????? | | +## #####! ##########u####??????????????????? | | u u ##?????????????????? | | T gg + ?? ?????????? | | @ ## #???????????? | | ########### ! ###############?????##???????????? | | ?########### ############# ????????????????????? | | ?# # # #??# ???????????????????? | | ## # # #??# ????????????????????? | | ?# + + #??# ????????????????????? | | ?# """ # # #??# ????????????????????? | | ?# """ # # #??# ????????????????????? | | ?# """ # # #??# ????????????????????? | | ?# # # #??# ???????????????????? | | ?# # # ##?##????????????????????? | | ?########### # #????????????????????????? | | ???????## ##########????????????????????????? | | ???????# #?????????#???????????????????????? | | ???????# ##############????????????????????? | | ?????????????????? ??????????????????????????????? | | ?????????????????????????????????????????????????? | | ?????????????????????????????????????????????????? | | ?????????????????????????????????????????????????? | | ?????????????????????????????????????????????????? | | ?????????????????????????????????????????????????? | | ?????????????????????????????????????????????????? | | ?????????????????????????????????????????????????? | | ?????????????????????????????????????????????????? | | ?????????????????????????????????????????????????? | +----------------------------------------------------+ Best States ------------- Heat Dissipation 31 Energy Generation 17 Energy Capacity 415 Matter Stores 300 Matter Capacity 300 Sight Range 16 Robot Scan Range 14 Terrain Scan Range 16 Terrain Scan Density 10 Core Shielding 20 Evasion (%) 40 Recoil Reduction 2 Item Schematics ----------------- None Robot Schematics ------------------ None Fabricated ------------ Nothing Alien Tech Used ----------------- None Achievements -------------- None Challenges ------------ None Game ------ Seed EnergyAngularBay Manual? 0 Play Time 00:19:23 Cumulative 17.0 hours Start 2024.03.31 @ 22:54:37 End 2024.04.27 @ 22:36:47 Sessions 6 Manual Loads 0 Difficulty Rogue Special Mode None Game No. 65 Rogue 65 Adventurer 0 Explorer 0 Win Type - Total 0 Types 0/0/0/0/0/0/0/0/0 Lore% 14 Gallery% 25 Achievement% 20 Wizard Run 0 Options --------- Layout 2 ASCII 1 Keyboard 0 Movement Mouse Keybinds 0 Fullscreen 2 Font 24/Smallcaps Map View 50x44 Zoom Use 0% Tactical HUD 1 Map Filters NONE Filters SHIFT_HUE(155)|BRIGHTNESS(115) Steam 1 RUN: 8e741f9e-3de1-4300-bcde-8a8631be902e